bitfinex/quotes_ETHUSD_20250903
["timestamp","ask_amount","ask_price","bid_price","bid_amount"]
[1756892690753,6.908,4345.0,4344.5,2.41695581]
[1756892690889,6.908,4345.0,4344.6,0.9331]
[1756892691420,6.908,4345.0,4344.7,0.4686]
[1756892692524,0.1152,4345.2,4344.9,0.3144]
[1756892692725,0.1152,4345.2,4345.1,2.301443]
[1756892692929,0.022,4345.8,4345.7,2.30112525]
[1756892693427,0.022,4345.8,4345.7,3.54862525]
[1756892693723,0.022,4345.8,4345.7,4.24880736]
[1756892694595,0.022,4345.8,4345.7,4.42171979]
[1756892698327,0.022,4345.8,4345.7,8.32571979]
[1756892699829,0.022,4345.8,4345.7,8.33391979]
[1756892701095,0.022,4345.8,4345.7,7.86121979]
[1756892701655,0.3188,4345.8,4345.7,0.1152]
[1756892701798,6.11776771,4345.8,4345.2,2.30138968]
[1756892702000,1.2597,4345.8,4345.1,3.418]
[1756892702200,4.85806771,4345.5,4344.6,2.30170702]
[1756892702455,4.85806771,4345.5,4344.5,1.769]
[1756892702456,0.2968,4344.7,4344.5,4.07074793]
[1756892702600,0.2968,4344.7,4344.6,3.904]
[1756892702806,0.2968,4344.7,4344.4,2.3018048]
[1756892703114,0.2968,4344.6,4344.4,2.478121]
[1756892703328,0.2968,4344.6,4344.4,0.17631766]
[1756892703604,3.4502,4345.5,4344.5,3.09916084]
[1756892703927,0.4502,4345.5,4344.7,2.30160361]
[1756892704317,0.4502,4345.5,4344.8,2.30159735]
[1756892704517,0.4502,4345.5,4344.5,3.26224642]
[1756892704518,0.4502,4345.5,4344.6,2.30169735]
[1756892704714,0.4502,4345.5,4344.8,2.30155389]
[1756892705120,2.75144365,4345.5,4344.7,2.30165441]
[1756892705437,5.30129069,4345.4,4344.5,0.4878]
[1756892705602,0.2968,4344.8,4344.7,2.30165488]
[1756892706023,0.4907,4345.5,4344.7,0.3096]
[1756892706341,0.4502,4345.4,4344.8,2.30155536]
[1756892706539,0.4502,4345.4,4344.7,2.30165025]
[1756892706844,3.0,4345.3,4344.6,2.30169417]
[1756892707339,0.2968,4344.7,4344.4,2.30177352]
[1756892707542,0.4502,4345.2,4344.7,2.30161715]
[1756892707907,0.4502,4345.2,4344.8,2.30160115]
[1756892708206,3.0,4345.5,4344.6,2.30170786]
[1756892708409,1.7682,4345.6,4344.7,8.14279999]
[1756892708615,1.7682,4345.6,4345.4,2.30127567]
[1756892708841,0.022,4345.8,4345.5,0.3096]
[1756892709041,0.022,4345.8,4345.6,2.3011782]
[1756892709239,0.022,4345.8,4345.4,2.30128191]
[1756892709443,0.022,4345.8,4345.5,2.30122506]
[1756892709652,0.022,4345.8,4345.2,4.3898]
[1756892709853,0.022,4345.8,4344.9,4.23979999]
[1756892709854,0.2968,4345.4,4344.9,4.23979999]
[1756892710147,0.9409,4345.7,4344.9,4.23979999]
[1756892710346,5.32307244,4345.8,4344.9,4.72759999]
[1756892710548,1.50788898,4345.8,4345.1,2.30143633]
[1756892710854,3.80896168,4345.8,4345.1,2.30143633]
[1756892711052,2.3011257,4345.7,4344.9,4.72759999]
[1756892711222,0.2968,4345.0,4344.9,4.23979999]
[1756892711417,0.4502,4345.5,4345.0,2.30149109]
[1756892711741,0.4502,4345.4,4344.9,4.35499999]
[1756892711946,0.4502,4345.4,4345.0,2.30144917]
[1756892712820,0.1152,4345.6,4345.1,2.30144074]
[1756892713061,0.1152,4345.6,4344.9,4.35499999]
[1756892713222,0.1152,4345.6,4345.0,2.30145102]
[1756892713426,0.4502,4345.5,4344.9,6.65653812]
[1756892713744,0.4502,4345.5,4344.9,2.41673813]
[1756892714071,0.2968,4345.0,4344.9,0.1152]
[1756892714358,0.747,4345.0,4344.7,5.7842]
[1756892714665,0.9409,4344.9,4344.4,0.17669897]
[1756892714963,0.9409,4344.9,4344.4,0.1152]
[1756892715144,0.2968,4344.5,4344.4,0.1152]
[1756892715864,0.747,4344.5,4344.3,0.004]
[1756892716056,0.8622,4344.5,4344.3,0.004]
[1756892716756,0.8622,4344.5,4344.4,0.004]
[1756892717147,1.3529,4344.5,4344.4,0.004]
[1756892717340,3.0,4345.0,4344.4,1.2741]
[1756892717536,3.0,4345.0,4344.5,2.30173827]
[1756892717948,0.1152,4345.1,4344.4,0.1192]
[1756892718142,0.1152,4345.1,4344.5,2.30176084]
[1756892718432,0.1152,4345.1,4344.6,2.30170032]
[1756892718647,0.1152,4345.1,4344.4,2.42100292]
[1756892718839,0.1152,4345.1,4344.5,2.30174722]
[1756892719262,0.1152,4345.1,4344.4,2.42101127]
[1756892719562,0.1152,4345.1,4344.5,2.30174719]
[1756892719752,0.1152,4345.1,4344.5,2.30171497]
[1756892720158,0.1152,4345.1,4344.4,2.42101305]
[1756892720332,0.2968,4344.5,4344.4,0.1192]
[1756892720533,0.2968,4344.5,4344.4,0.004]
[1756892721261,0.1152,4344.8,4344.4,2.61540796]
[1756892721663,0.1152,4344.8,4344.4,0.3136]
[1756892723337,0.2968,4344.5,4344.4,0.004]
[1756892724066,0.747,4344.5,4344.4,0.004]
[1756892724736,0.8622,4344.5,4344.4,0.004]
[1756892725156,0.412,4344.5,4344.4,0.004]
[1756892726963,0.1152,4344.8,4344.4,2.61536704]
[1756892727565,3.899,4345.2,4344.5,0.9605]
[1756892727750,0.1152,4345.0,4344.7,2.30161914]
[1756892728460,0.1152,4345.0,4344.9,0.3096]
[1756892728767,0.1152,4345.0,4344.6,2.30169637]
[1756892729149,0.1152,4345.0,4344.7,2.30164525]
[1756892729350,0.1152,4345.0,4344.6,2.30169555]
[1756892730762,0.1152,4345.0,4344.5,0.4727]
[1756892731063,0.2901,4344.6,4344.4,0.004]
[1756892731362,0.1152,4345.0,4344.5,2.30176084]
[1756892731562,0.1152,4345.0,4344.5,3.08736084]
[1756892732158,0.1152,4345.0,4344.6,2.30169008]
[1756892732356,0.1152,4345.0,4344.5,0.3035]
[1756892732552,0.1152,4345.0,4344.4,2.30578551]
[1756892733365,0.1152,4345.0,4344.4,2.30576857]
[1756892733555,0.2901,4344.5,4344.4,0.004]
[1756892733867,0.4682,4344.9,4344.4,0.004]
[1756892734070,0.2901,4344.5,4344.4,0.004]
[1756892734658,3.0,4344.9,4344.4,0.004]
[1756892734659,3.0,4344.9,4344.4,0.3075]
[1756892734971,0.1152,4345.0,4344.7,2.30164379]
[1756892735163,0.1152,4345.0,4344.9,0.3035]
[1756892735666,0.1152,4345.0,4344.7,2.78374379]
[1756892735878,0.1152,4345.0,4344.7,0.4821]
[1756892736078,0.1152,4345.0,4344.6,2.30170024]
[1756892736553,0.1152,4345.0,4344.6,3.23300024]
[1756892736949,0.1152,4345.0,4344.5,2.30175787]
[1756892737283,0.1152,4345.0,4344.4,2.3057984]
[1756892737690,0.1152,4345.0,4344.5,2.30175411]
[1756892738178,0.5834,4345.0,4344.5,2.30175411]
[1756892738549,0.1152,4345.0,4344.5,2.30175411]
[1756892738749,0.4682,4344.9,4344.5,2.30175411]
[1756892738952,0.4682,4344.9,4344.4,2.30581351]
[1756892739281,0.1152,4345.0,4344.5,2.30175833]
[1756892739480,0.4682,4344.9,4344.5,2.30175833]
[1756892740260,0.1152,4345.0,4344.5,2.30175833]
[1756892741147,0.1152,4345.0,4344.6,2.78379529]
[1756892741347,4.0052,4345.0,4344.9,0.3035]
[1756892742075,4.0052,4345.0,4344.6,3.23299605]
[1756892742378,4.0052,4345.0,4344.6,0.9313]
[1756892742571,4.0052,4345.0,4344.6,3.23300752]
[1756892742951,0.1152,4345.0,4344.9,0.3035]
[1756892743150,0.1152,4345.0,4344.7,0.4821]
[1756892743381,0.1152,4345.0,4344.6,2.75090752]
[1756892743680,0.2901,4344.7,4344.4,0.004]
[1756892743980,4.0032,4345.0,4344.5,2.30175919]
[1756892744160,4.0032,4345.0,4344.4,2.30580528]
[1756892746263,4.0032,4345.0,4344.4,2.30580162]
[1756892746886,0.1152,4345.0,4344.4,2.30580162]
[1756892747260,3.888,4344.9,4344.4,2.30580162]
[1756892747461,0.2901,4344.5,4344.4,0.004]
[1756892747964,0.2901,4344.5,4344.4,0.3075]
[1756892747965,0.1152,4344.5,4344.4,0.3075]
[1756892749754,0.1152,4344.5,4344.4,0.004]
[1756892750183,0.4053,4344.5,4344.4,0.004]
[1756892752075,0.1144,4344.5,4344.4,0.004]
[1756892752790,0.1144,4344.5,4344.4,0.3075]
[1756892752986,2.76953798,4345.3,4344.4,3.54061382]
[1756892753160,4.0032,4345.2,4344.7,2.30164586]
[1756892753355,3.888,4345.1,4344.8,0.9313]
[1756892753559,3.888,4345.1,4344.8,3.2328871]
[1756892753760,3.888,4345.1,4344.8,2.7836871]
[1756892753960,3.888,4345.1,4344.8,0.4821]
[1756892754189,3.888,4345.1,4344.6,0.1152]
[1756892754392,4.3562,4345.1,4344.6,0.1152]
[1756892754690,4.3562,4345.1,4344.7,2.30164891]
[1756892754991,3.888,4345.1,4344.7,2.30164263]
[1756892755373,3.888,4345.1,4344.6,2.41689165]
[1756892755572,3.888,4345.1,4344.6,2.89899165]
[1756892755898,3.888,4345.1,4344.7,2.30164186]
[1756892756194,0.1152,4345.2,4345.0,2.60499155]
[1756892756391,0.1152,4345.4,4345.1,2.301443]
[1756892756584,3.888,4345.2,4345.1,2.301443]
[1756892756778,3.888,4345.2,4345.1,3.087043]
[1756892756994,0.001,4345.5,4345.1,3.202243]
[1756892757195,3.001,4345.5,4345.4,2.30128411]
[1756892757496,3.001,4345.5,4345.4,3.53608411]
[1756892757693,0.001,4345.5,4345.4,3.53608411]
[1756892758209,0.001,4345.5,4345.4,1.2348]
[1756892759998,0.2967,4345.5,4345.1,0.1152]
[1756892761088,3.888,4345.3,4344.9,3.20173754]
[1756892761495,0.1152,4345.4,4345.2,0.3139]
[1756892761693,3.888,4345.4,4345.2,0.3139]
[1756892762498,3.888,4345.4,4344.7,4.23979999]
[1756892762499,0.2957,4345.3,4344.4,0.004]
[1756892762698,3.0,4345.2,4344.7,2.74250842]
[1756892762885,2.30132096,4345.4,4344.6,2.30170579]
[1756892763093,3.0,4345.2,4344.8,0.4593]
[1756892763401,0.001,4345.5,4345.1,0.3139]
[1756892763599,3.0,4345.2,4345.1,0.3139]
[1756892763799,3.887,4345.4,4345.1,0.7732]
[1756892764003,0.001,4345.5,4345.1,0.3139]
[1756892764305,3.001,4345.5,4345.2,0.9002]
[1756892764501,0.001,4345.5,4345.4,0.3139]
[1756892764670,0.001,4345.5,4345.4,0.7732]
[1756892765831,0.001,4345.5,4345.4,3.82283751]
[1756892768400,0.001,4345.5,4345.4,7.26893751]
[1756892768600,0.001,4345.5,4345.4,7.70983751]
[1756892769600,0.001,4345.5,4345.4,6.80963751]
[1756892771073,0.001,4345.5,4345.4,7.26893751]
[1756892772409,0.001,4345.5,4345.4,7.38413751]
[1756892773191,0.001,4345.5,4345.4,5.0828534]
[1756892773907,0.001,4345.5,4345.4,7.38413751]
[1756892774088,0.001,4345.5,4345.4,7.82503751]
[1756892774678,0.001,4345.5,4345.4,7.38413751]
[1756892775014,0.001,4345.5,4345.4,12.68466135]
[1756892775509,0.001,4345.5,4345.4,7.82503751]
[1756892775907,0.001,4345.5,4345.4,11.6239375]
[1756892776300,0.001,4345.5,4345.4,12.0648375]
[1756892776497,0.0002,4345.5,4345.4,12.0648375]
[1756892776890,0.0002,4345.5,4345.4,15.8648375]
[1756892779886,0.0002,4345.5,4345.4,15.7496375]
[1756892780091,0.0002,4345.5,4345.4,18.8648375]
[1756892781809,0.0002,4345.5,4345.4,14.62503751]
[1756892782579,0.0002,4345.5,4345.4,11.62503751]
[1756892783323,0.0002,4345.5,4345.4,7.29713751]
[1756892783613,0.0002,4345.5,4345.4,10.41638411]
[1756892783811,0.0002,4345.5,4345.4,11.31658411]
[1756892784218,0.0002,4345.5,4345.4,10.41638411]
[1756892790617,0.3115,4345.5,4345.4,10.10248411]
[1756892791929,0.3115,4345.5,4345.4,6.21648411]
[1756892792117,0.7717,4345.5,4345.4,10.10248411]
[1756892792523,0.3115,4345.5,4345.4,10.10248411]
[1756892794426,0.0002,4345.5,4345.4,10.10248411]
[1756892795937,0.4824,4345.5,4345.4,10.40768411]
[1756892796132,0.4824,4345.5,4345.4,7.92424132]
[1756892796333,0.4824,4345.5,4345.4,8.38204132]
[1756892796640,0.4824,4345.5,4345.4,7.92424132]
[1756892796950,0.7937,4345.5,4345.4,6.30248411]
[1756892798143,0.4824,4345.5,4345.4,6.30248411]
[1756892798847,0.7937,4345.5,4345.4,6.30248411]
[1756892799571,1.745,4345.5,4344.5,4.24379999]
[1756892799746,1.745,4345.5,4344.8,3.885]
[1756892799747,4.85962384,4344.9,4344.8,3.885]
[1756892799919,5.63112384,4344.9,4344.8,3.885]
[1756892800757,5.63112384,4344.9,4344.8,6.18660191]
[1756892800954,5.63112384,4344.9,4344.8,3.885]
[1756892801141,6.12142384,4344.9,4344.8,3.885]
[1756892801531,6.12142384,4344.9,4344.5,0.004]
[1756892801532,5.63032384,4344.9,4344.7,3.885]
[1756892801737,0.3113,4344.9,4344.8,2.30160191]
[1756892802044,0.3113,4344.9,4344.7,3.885]
[1756892802045,0.3113,4344.9,4344.7,6.1866536]
[1756892802248,0.7715,4344.9,4344.7,3.885]
[1756892802756,0.7715,4344.9,4344.8,2.30160191]
[1756892803731,0.7715,4344.9,4344.7,3.885]
[1756892803937,0.4602,4344.8,4344.7,3.885]
[1756892804136,0.7715,4344.8,4344.7,3.885]
[1756892805062,0.7715,4344.8,4344.5,6.10571998]
[1756892805063,5.63112384,4344.8,4344.5,0.004]
[1756892805286,6.09370786,4344.6,4344.5,0.004]
[1756892805762,7.35630786,4344.6,4344.5,0.004]
[1756892806332,12.2159317,4344.6,4344.5,0.004]
[1756892806866,6.09376084,4344.5,4344.0,0.004]
[1756892807027,6.09397279,4344.1,4344.0,0.004]
[1756892807233,6.40527279,4344.1,4344.0,0.004]
[1756892807430,7.35657279,4344.1,4344.0,0.004]
[1756892809367,6.09402578,4344.0,4343.9,0.004]
[1756892809666,11.32790865,4344.0,4343.9,0.004]
[1756892809882,12.59050865,4344.0,4343.9,0.004]
[1756892810051,12.6827997,4344.0,4343.9,0.004]
[1756892810685,8.7947997,4344.0,4343.9,0.004]
[1756892810976,12.6827997,4344.0,4343.9,0.004]
[1756892812769,8.3036997,4344.0,4343.9,0.004]
[1756892812968,12.1916997,4344.0,4343.9,0.004]
[1756892813468,12.6827997,4344.0,4343.9,0.004]
[1756892814033,12.6837997,4344.0,4343.9,0.004]
[1756892814464,12.6827997,4344.0,4343.9,0.004]
[1756892815274,12.6837997,4344.0,4343.9,0.004]
[1756892815651,8.3036997,4344.0,4343.9,0.004]
[1756892815858,12.1916997,4344.0,4343.9,0.004]
[1756892816765,11.6162997,4344.0,4343.9,0.004]
[1756892816970,16.27982354,4344.0,4343.9,0.004]
[1756892817170,16.59112354,4344.0,4343.9,0.004]
[1756892817650,17.05132354,4344.0,4343.9,0.004]
[1756892818074,8.3036997,4344.0,4343.9,0.004]
[1756892818281,12.1916997,4344.0,4343.9,0.004]
[1756892820787,11.4191997,4344.0,4343.9,0.004]
[1756892821002,11.7223997,4344.0,4343.9,0.004]
[1756892821154,7.5321997,4344.0,4343.9,0.004]
[1756892821359,10.18851683,4344.0,4343.9,0.3194]
[1756892821675,10.49171683,4344.0,4343.9,0.004]
[1756892821986,10.96111683,4344.0,4343.9,0.004]
[1756892822894,11.43911683,4344.0,4343.9,0.004]
[1756892823488,10.37751683,4344.0,4343.9,0.004]
[1756892823681,15.35234067,4344.0,4343.9,0.004]
[1756892823864,15.04914067,4344.0,4343.9,0.004]
[1756892824070,15.35234067,4344.0,4343.9,0.004]
[1756892824389,7.88749105,4344.0,4343.9,0.004]
[1756892824593,15.04914067,4344.0,4343.9,0.3194]
[1756892824773,15.83798978,4344.0,4343.9,0.004]
[1756892825091,16.14118978,4344.0,4343.9,0.004]
[1756892825591,16.60978978,4344.0,4343.9,0.004]
[1756892825779,16.14038978,4344.0,4343.9,0.004]
[1756892825956,12.25238978,4344.0,4343.9,0.004]
[1756892826155,16.13938978,4344.0,4343.9,0.004]
[1756892827176,12.25238978,4344.0,4343.9,0.004]
[1756892827365,16.13938978,4344.0,4343.9,0.004]
[1756892828690,7.08956594,4344.0,4343.9,0.3194]
[1756892828889,10.18771683,4344.0,4343.9,0.7737]
[1756892832197,10.18771683,4344.0,4343.9,0.3194]
[1756892833193,3.20749105,4344.0,4343.9,0.3194]
[1756892833498,7.09449105,4344.0,4343.9,1.2255]
[1756892834004,7.09549105,4344.0,4343.9,0.7737]
[1756892834208,7.09549105,4344.0,4343.9,1.2255]
[1756892835571,9.39751683,4344.0,4343.9,1.2255]
[1756892836079,7.09549105,4344.0,4343.9,1.2255]
[1756892840390,7.09549105,4344.0,4343.9,0.7737]
[1756892840969,7.09549105,4344.0,4343.9,1.2255]
[1756892841708,0.09329105,4344.0,4343.9,3.65312877]
[1756892842005,0.001,4344.0,4343.9,7.56832877]
[1756892842717,0.001,4344.0,4343.9,7.45312877]
[1756892843016,0.001,4344.0,4343.9,7.56832877]
[1756892843297,1e-08,4344.0,4343.9,7.56832877]
[1756892843499,1e-08,4344.3,4344.2,2.3019198]
[1756892843798,1e-08,4344.3,4344.2,11.11518224]
[1756892843976,1e-08,4344.3,4344.2,12.33668224]
[1756892846381,0.001,4344.9,4344.7,2.30165488]
[1756892846581,0.001,4344.9,4344.7,6.30385488]
[1756892846789,0.001,4344.9,4344.7,8.98001695]
[1756892846986,0.001,4344.9,4344.7,12.78001695]
[1756892849905,0.001,4344.9,4344.7,12.9561323]
[1756892850111,0.0002,4344.8,4344.7,17.19593229]
[1756892853614,0.0002,4344.8,4344.7,13.30893229]
[1756892853915,0.0002,4344.8,4344.7,17.19493229]
[1756892856691,0.0002,4344.8,4344.7,17.19393229]
[1756892860142,0.7585,4344.8,4344.7,12.08743229]
[1756892860292,1.2369,4344.8,4344.7,14.51777022]
[1756892860493,1.2369,4344.8,4344.7,10.63277022]
[1756892860792,1.2369,4344.8,4344.7,4.17631535]
[1756892861096,1.2369,4344.8,4344.7,6.47797023]
[1756892861690,1.2369,4344.8,4344.7,4.17631535]
[1756892862104,1.2369,4344.8,4344.7,0.29131535]
[1756892862396,1.59083601,4344.8,4344.5,4.0002]
[1756892862594,0.9204,4344.7,4344.5,4.17502704]
[1756892862900,1.2367,4344.6,4344.5,6.47678788]
[1756892863112,1.2367,4344.6,4344.5,2.59178788]
[1756892863295,1.2367,4344.6,4344.5,6.47678788]
[1756892863689,1.2367,4344.6,4344.5,2.59178788]
[1756892864100,1.2367,4344.6,4344.5,0.29002704]
[1756892865593,1.36049,4344.6,4344.2,1.77]
[1756892865816,0.44009,4344.6,4344.3,3.885]
[1756892866023,0.9204,4344.5,4344.2,0.17558245]
[1756892866339,0.9204,4344.5,4344.1,4.0002]
[1756892866340,0.3163,4344.3,4344.1,0.1152]
[1756892866524,0.1152,4344.2,4343.9,3.889]
[1756892866721,0.3163,4344.0,4343.9,0.004]
[1756892867228,0.7583,4344.0,4343.9,0.004]
[1756892868129,1.2367,4344.0,4343.9,0.004]
[1756892868290,1.2367,4344.0,4343.9,0.17509969]
[1756892868495,1.2367,4344.0,4343.9,0.004]
[1756892869112,0.69199762,4344.1,4344.0,2.30202578]
[1756892869334,0.69199762,4344.1,4344.0,7.90549043]
[1756892869494,0.69199762,4344.1,4344.0,7.44129043]
[1756892869698,0.3163,4344.1,4344.0,6.18702578]
[1756892869994,0.442,4344.5,4344.3,2.30183603]
[1756892870198,0.442,4344.5,4344.4,2.30181382]
[1756892870624,0.7583,4344.5,4344.4,2.30181382]
[1756892871122,0.7583,4344.5,4344.3,6.18685637]
[1756892871313,0.442,4344.4,4344.3,6.18685637]
[1756892871517,0.7583,4344.4,4344.3,6.18685637]
[1756892872497,0.3163,4344.4,4344.3,3.885]
[1756892872702,0.7583,4344.4,4344.3,6.18686681]
[1756892874022,0.3163,4344.4,4344.3,6.18686681]
[1756892874531,0.3155,4344.4,4344.3,6.18686681]
[1756892874918,0.0002,4344.8,4344.6,2.30169335]
[1756892875205,0.9204,4344.7,4344.5,3.885]
[1756892875421,0.3163,4344.4,4344.2,0.1152]
[1756892875612,0.3163,4344.4,4344.3,3.885]
[1756892875825,0.7583,4344.4,4344.3,3.885]
[1756892876133,0.3163,4344.4,4344.3,6.18686681]
[1756892876439,0.3163,4344.4,4344.3,7.04726935]
[1756892877524,0.7583,4344.4,4344.3,4.74540254]
[1756892877723,0.7583,4344.4,4344.3,3.885]
[1756892877939,0.7583,4344.4,4344.3,6.18686681]
[1756892878098,0.3163,4344.4,4344.3,6.18686681]
[1756892878297,0.3163,4344.4,4344.3,3.885]
[1756892878533,0.7583,4344.4,4344.3,3.885]
[1756892878904,1.2367,4344.4,4344.2,0.1152]
[1756892879102,0.9204,4344.3,4343.9,0.17265819]
[1756892879341,0.3163,4344.4,4344.2,2.30190607]
[1756892879541,0.7888,4344.3,4344.2,2.30190607]
[1756892879741,0.3163,4344.3,4344.2,2.30190607]
[1756892879952,0.1152,4344.6,4344.4,2.30180388]
[1756892880108,0.1152,4344.6,4344.5,2.30176084]
[1756892880109,0.4315,4344.6,4344.5,2.30176084]
[1756892880309,0.1154,4344.8,4344.4,2.30180163]
[1756892880635,0.80730984,4344.8,4344.2,6.47880607]
[1756892880936,0.80730984,4344.8,4344.5,2.30175208]
[1756892881134,0.80730984,4344.8,4344.4,2.30179941]
[1756892881505,0.2903,4344.5,4344.4,2.30179941]
[1756892881828,0.7628,4344.5,4344.2,3.885]
[1756892882035,0.4725,4344.4,4344.2,3.885]
[1756892882230,0.2903,4344.3,4344.2,6.18691403]
[1756892882433,0.7628,4344.3,4344.2,6.18691403]
[1756892882840,0.80730984,4344.8,4344.2,5.95508347]
[1756892883038,0.80730984,4344.8,4344.3,0.9005]
[1756892883039,0.0002,4344.8,4344.3,0.9005]
[1756892883225,0.0002,4344.8,4344.7,0.1152]
[1756892883554,0.0002,4344.8,4344.7,6.59375488]
[1756892883723,0.0002,4344.8,4344.7,7.49425488]
[1756892883932,0.2905,4344.8,4344.7,1.47480062]
[1756892884240,0.2905,4344.8,4344.7,6.30185488]
[1756892884809,0.0002,4344.8,4344.7,6.30185488]
[1756892885011,0.0002,4344.8,4344.7,6.59375488]
[1756892885217,0.0002,4344.8,4344.7,2.70875488]
[1756892885520,0.0002,4344.8,4344.7,6.59375488]
[1756892885720,0.0002,4344.8,4344.7,7.49425488]
[1756892886044,0.0002,4344.8,4344.7,8.47385538]
[1756892886951,0.0002,4344.8,4344.7,8.02995538]
[1756892887247,0.0002,4344.8,4344.7,7.57335538]
[1756892888142,0.0002,4344.8,4344.7,8.47385538]
[1756892889015,0.0002,4344.8,4344.7,12.27385538]
[1756892892041,0.001,4345.3,4344.8,2.30160191]
[1756892892246,0.001,4345.3,4345.2,2.30139003]
[1756892892423,0.001,4345.3,4345.2,8.36249003]
[1756892892750,0.001,4345.3,4345.2,13.06299003]
[1756892894843,1e-08,4345.3,4345.2,13.06299003]
[1756892895046,0.022,4346.8,4345.7,2.30112525]
[1756892895047,1e-08,4345.8,4345.7,2.30112525]
[1756892895243,1e-08,4345.8,4345.7,14.27360012]
[1756892895442,1e-08,4345.8,4345.7,15.58120012]
[1756892895642,1e-08,4345.8,4345.7,10.63883778]
[1756892895842,1e-08,4345.8,4345.7,14.52283778]
[1756892898328,0.17201324,4352.7,4347.2,0.792]
[1756892898541,0.96322125,4352.8,4347.2,0.792]
[1756892898542,1e-08,4348.8,4348.7,7.15790013]
[1756892898756,2.071,4352.8,4350.5,2.29858636]
[1756892898981,0.0432,4351.8,4350.6,9.472]
[1756892899150,0.0432,4351.8,4351.7,2.29795252]
[1756892899357,0.0432,4351.8,4351.7,6.22195252]
[1756892899681,0.3335,4351.8,4351.7,2.29795252]
[1756892899893,0.3335,4351.8,4351.7,6.23395252]
[1756892900380,0.0432,4351.8,4351.7,3.936]
[1756892900685,0.0432,4351.8,4350.7,0.9472]
[1756892900686,0.0432,4351.8,4351.5,3.938]
[1756892900844,0.0432,4351.8,4351.4,3.938]
[1756892901381,0.23409954,4351.7,4351.4,3.938]
[1756892901580,2.53210126,4351.7,4351.5,3.939]
[1756892901748,0.23409954,4351.7,4351.5,3.939]
[1756892901944,2.29800533,4351.6,4351.5,3.939]
[1756892902384,2.29800533,4351.6,4350.1,3.938]
[1756892902385,0.792,4351.4,4350.1,3.938]
[1756892902681,2.29851805,4350.7,4350.2,3.938]
[1756892902866,2.29858749,4350.5,4350.2,4.11702829]
[1756892903180,0.52985875,4350.4,4350.1,3.942]
[1756892903477,2.29874879,4350.2,4350.0,3.942]
[1756892903650,2.29874879,4350.2,4349.9,0.17559406]
[1756892903846,5.2982694,4351.1,4349.8,3.942]
[1756892903847,2.29874118,4350.3,4349.8,3.942]
[1756892904075,2.29878609,4350.2,4349.8,3.942]
[1756892904378,2.29876221,4350.2,4349.8,3.941]
[1756892904576,2.29838179,4350.9,4349.8,3.941]
[1756892904577,3.0,4351.3,4349.8,3.941]
[1756892904793,1.768,4352.3,4349.9,3.8]
[1756892904950,2.29774962,4352.1,4349.9,3.8]
[1756892905150,0.69099029,4350.5,4350.4,2.2986392]
[1756892905366,3.0,4351.6,4350.7,2.29844732]
[1756892905566,2.29780572,4352.0,4350.4,1.768]
[1756892905567,0.53411665,4351.5,4350.4,1.768]
[1756892905766,3.0,4351.6,4350.5,6.748]
[1756892905972,0.792,4351.6,4350.6,3.945]
[1756892906169,2.29815402,4351.4,4350.7,0.9005]
[1756892906370,2.29815402,4351.4,4351.3,0.2919]
[1756892906777,2.29815402,4351.4,4351.3,1.1924]
[1756892907081,6.05777257,4351.4,4351.3,1.1924]
[1756892907667,3.75961855,4351.4,4351.3,1.1924]
[1756892907873,0.0432,4351.8,4351.3,1.1924]
[1756892908054,0.0432,4351.8,4351.4,0.9005]
[1756892908252,2.29800577,4351.6,4351.4,0.9005]
[1756892908479,2.29800577,4351.6,4351.5,1.1924]
[1756892908685,2.29800533,4351.6,4351.5,1.1924]
[1756892908890,6.07343784,4351.6,4351.5,1.1924]
[1756892909286,6.07343784,4351.6,4351.1,0.4566]
[1756892909287,2.29821783,4351.2,4351.1,0.4566]
[1756892909486,2.29821783,4351.2,4350.8,0.022]
[1756892909811,2.29821783,4351.2,4351.1,0.2995]
[1756892909959,0.1152,4351.3,4351.1,0.7572]
[1756892910162,0.1152,4351.3,4351.1,1.2031]
[1756892910463,0.1152,4351.3,4351.2,0.9036]
[1756892910863,2.29795762,4351.7,4351.2,1.2031]
[1756892911062,0.80603276,4351.5,4351.2,0.2995]
[1756892911262,0.80603276,4351.5,4351.3,0.9036]
[1756892911562,0.80603276,4351.5,4351.4,1.2031]
[1756892911889,0.792,4351.2,4350.8,0.022]
[1756892912188,3.09037504,4350.9,4350.8,0.022]
[1756892912388,2.29832526,4351.0,4350.8,0.4797]
[1756892912590,2.2982694,4351.1,4350.8,0.7792]
[1756892912790,7.53875638,4351.2,4350.9,0.4577]
[1756892913092,2.41352222,4351.0,4350.9,0.9036]
[1756892913298,5.29837504,4350.9,4350.8,0.022]
[1756892913630,7.62501501,4350.9,4350.8,0.022]
[1756892913934,11.47481501,4350.9,4350.8,0.022]
[1756892914318,6.72281501,4350.9,4350.8,0.3215]
[1756892914529,6.72281501,4350.9,4350.8,1.2251]
[1756892915185,6.72281501,4350.9,4350.8,0.7792]
[1756892915490,6.83301501,4350.9,4350.8,0.022]
[1756892915688,7.62501501,4350.9,4350.8,0.022]
[1756892917108,8.28171501,4350.9,4350.8,0.022]
[1756892917634,8.07231501,4350.9,4350.8,0.022]
[1756892918841,8.07231501,4350.9,4349.8,0.022]
[1756892918842,0.792,4350.8,4349.8,0.022]
[1756892919139,2.41410342,4349.9,4349.8,0.022]
[1756892919437,11.93010342,4349.9,4349.8,0.022]
[1756892919638,8.08430342,4349.9,4349.8,0.022]
[1756892919807,4.8832,4349.9,4349.8,0.7674]
[1756892920007,0.4939,4351.8,4349.8,1.2251]
[1756892920008,0.1152,4350.3,4349.8,1.2251]
[1756892920207,1.768,4350.9,4349.9,1.03763]
[1756892920208,3.0,4350.4,4349.9,1.03763]